[Event "Cracovia Festival-A 2023"]
[Site "Krakow"]
[Date "2023.12.30"]
[Round "4.22"]
[White "Niedbala, Bartlomiej"]
[Black "Suder, Jakub"]
[Result "1/2-1/2"]
[ECO "C11"]
[WhiteElo "2393"]
[BlackElo "2312"]
[Annotator "ChessBase"]
[PlyCount "63"]
[EventDate "2023.12.24"]
[EventType "swiss"]
[EventCountry "POL"]
[SourceTitle "playchess.com"]
[Source "ChessBase"]
[SourceQuality "1"]
[TimeControl "40/5400+30:1800+30"]

1. e4 {[%emt 0:00:10]} e6 {[%emt 0:00:05]} 2. d4 {[%emt 0:01:59]} d5 {[%emt 0:00:05]} 3. Nc3 {[%emt 0:04:08]} Nf6 {[%emt 0:00:07]} 4. e5 {[%emt 0:00:17]} Nfd7 {[%emt 0:00:04]} 5. f4 {[%emt 0:00:05]} c5 {[%emt 0:00:05]} 6. Nf3 {[%emt 0:00:03]} Nc6 {[%emt 0:00:06]} 7. Be3 {[%emt 0:00:03]} Be7 {[%emt 0:00:05]} 8. Qd2 {[%emt 0:02:41]} O-O {[%emt 0:01:29]} 9. dxc5 {[%emt 0:02:44]} Qa5 {[%emt 0:01:23]} 10. a3 {[%emt 0:02:42]} Bxc5 {[%emt 0:01:42]} 11. h4 {[%emt 0:10:23]} Bxe3 {[%emt 0:11:55]} 12. Qxe3 {[%emt 0:00:22]} f6 {[%emt 0:00:10]} 13. exf6 {[%emt 0:02:16]} Nxf6 {[%emt 0:00:37]} 14. O-O-O {[%emt 0:02:36]} a6 {[%emt 0:08:44]} 15. g3 {[%emt 0:14:43]} Kh8 {[%emt 0:06:26]} 16. h5 {[%emt 0:08:32]} Ng4 {[%emt 0:03:30]} 17. Qg1 {[%emt 0:05:00]} Bd7 {[%emt 0:21:59]} 18. Bh3 {[%emt 0:02:15]} Nf6 {[%emt 0:01:03]} 19. h6 {[%emt 0:08:09]} gxh6 {[%emt 0:01:01]} 20. Ne5 {[%emt 0:07:55]} Qc7 {[%emt 0:05:06]} 21. Nxd7 {[%emt 0:08:22]} Qxd7 {[%emt 0:01:02]} 22. Qc5 {[%emt 0:00:22]} Rad8 {[%emt 0:09:05]} 23. Rhe1 {[%emt 0:02:22]} Rfe8 {[%emt 0:00:25]} 24. Kb1 {[%emt 0:01:12]} h5 {[%emt 0:01:02]} 25. Qf2 {[%emt 0:06:18]} Qf7 {[%emt 0:02:39]} 26. Re2 {[%emt 0:03:26]} Re7 {[%emt 0:01:37]} 27. Rde1 {[%emt 0:02:03]} Rde8 {[%emt 0:00:05]} 28. Qc5 {[%emt 0:00:17]} Qg8 {[%emt 0:02:14]} 29. Qf2 {[%emt 0:01:15]} Qf7 {[%emt 0:00:22]} 30. Qc5 {[%emt 0:00:21]} Qg8 {[%emt 0:00:06]} 31. Qf2 {[%emt 0:00:05]} Qf7 {[%emt 0:00:11]} 32. Qc5 {[%emt 0:00:04]} 1/2-1/2

[Event "Cracovia Festival-A 2023"]
[Site "Krakow"]
[Date "2023.12.30"]
[Round "4.23"]
[White "Turski, Bartlomiej"]
[Black "Klepek, Witold"]
[Result "0-1"]
[ECO "A45"]
[WhiteElo "2380"]
[BlackElo "2252"]
[Annotator "RC"]
[PlyCount "66"]
[EventDate "2023.12.24"]
[EventType "swiss"]
[EventCountry "POL"]
[SourceTitle "playchess.com"]
[Source "ChessBase"]
[SourceQuality "1"]
[TimeControl "40/5400+30:1800+30"]

1. d4 {[%emt 0:00:03]} Nf6 {[%emt 0:00:13]} 2. Bg5 {[%emt 0:00:04]} c5 {[%emt 0:02:57]} 3. Bxf6 {[%emt 0:04:59]} gxf6 {[%emt 0:04:08]} 4. d5 {[%emt 0:02:36]} Qb6 {[%emt 0:05:59]} 5. Qc1 {[%emt 0:02:44]} f5 {[%emt 0:03:20]} 6. c4 {[%emt 0:06:25]} e5 {[%emt 0:03:32]} 7. Nc3 {[%emt 0:02:21]} Bh6 {[%emt 0:04:20]} 8. e3 {[%emt 0:05:25]} d6 {[%emt 0:08:32]} 9. f4 {[%emt 0:11:20]} e4 {[%emt 0:05:03]} 10. Qc2 {[%emt 0:02:25]} Nd7 {[%emt 0:02:41]} 11. g4 {[%emt 0:04:50]} fxg4 {[%emt 0:02:46]} 12. Nxe4 {[%emt 0:01:03]} Bg7 {[%emt 0:04:21]} 13. O-O-O {[%emt 0:04:36]} Nf6 {[%emt 0:10:14]} 14. Nc3 {[%emt 0:02:27]} O-O {[%emt 0:00:52]} 15. h3 {[%emt 0:03:56]} Re8 {[%emt 0:01:47]} 16. Re1 {[%emt 0:05:35]} Qa5 {[%emt 0:04:49]} 17. hxg4 {[%emt 0:09:17]} b5 {[%emt 0:04:18]} 18. cxb5 {[%emt 0:05:08]} Nxd5 {[%emt 0:03:28]} 19. Kd2 {[%emt 0:17:44]} Nxc3 {[%emt 0:04:39]} 20. bxc3 {[%emt 0:00:05]} Bb7 {[%emt 0:00:10]} 21. Rh5 {[%emt 0:03:13]} Be4 {[%emt 0:00:10]} 22. Bd3 {[%emt 0:01:10]} Bxd3 {[%emt 0:02:31]} 23. Kxd3 {[%emt 0:00:20]} Rab8 {[%emt 0:00:55]} 24. a4 {[%emt 0:01:34]} a6 {[%emt 0:00:38]} 25. Ke2 {[%emt 0:02:08]} axb5 {[%emt 0:00:25]} 26. Qxh7+ {[%emt 0:01:02]} Kf8 {[%emt 0:00:03]} 27. axb5 {[%emt 0:00:55]} Qxc3 {[%emt 0:01:03]} 28. Kf2 {[%emt 0:00:31]} Rxb5 {[%emt 0:01:01]} 29. Re2 {[%emt 0:00:13]} Rb2 {[%emt 0:03:12]} 30. Rh3 {[%emt 0:00:19]} Reb8 {[%emt 0:00:58]} 31. g5 {[%emt 0:00:50]} Qc1 {[%emt 0:05:58]} 32. Nf3 {[%emt 0:00:39]} Rxe2+ {[%emt 0:00:08]} 33. Kg3 {[%emt 0:00:24]} Rxe3 {[%emt 0:00:24]} 0-1

[Event "Cracovia Festival-A 2023"]
[Site "Krakow"]
[Date "2023.12.30"]
[Round "4.24"]
[White "Fodor, Balazs"]
[Black "Karolczuk, Iwo"]
[Result "1/2-1/2"]
[ECO "E10"]
[WhiteElo "2225"]
[BlackElo "2365"]
[Annotator "RC"]
[PlyCount "117"]
[EventDate "2023.12.24"]
[EventType "swiss"]
[EventCountry "POL"]
[SourceTitle "playchess.com"]
[Source "ChessBase"]
[SourceQuality "1"]
[TimeControl "40/5400+30:1800+30"]

1. d4 {[%emt 0:02:38]} Nf6 {[%emt 0:00:16]} 2. c4 {[%emt 0:00:12]} e6 {[%emt 0:00:15]} 3. Nf3 {[%emt 0:00:42]} d5 {[%emt 0:00:05]} 4. g3 {[%emt 0:00:11]} h6 {[%emt 0:00:11]} 5. Bg2 {[%emt 0:01:02]} Bd6 {[%emt 0:00:08]} 6. O-O {[%emt 0:00:09]} O-O {[%emt 0:00:07]} 7. Qc2 {[%emt 0:00:15]} Nc6 {[%emt 0:00:22]} 8. a3 {[%emt 0:00:08]} dxc4 {[%emt 0:00:30]} 9. Nbd2 {[%emt 0:00:09]} b5 {[%emt 0:01:25]} 10. b3 {[%emt 0:00:07]} Na5 {[%emt 0:00:59]} 11. bxc4 {[%emt 0:00:09]} bxc4 {[%emt 0:10:41]} 12. Ne5 {[%emt 0:00:09]} Rb8 {[%emt 0:13:26]} 13. Nexc4 {[%emt 0:11:55]} Nxc4 {[%emt 0:01:55]} 14. Nxc4 {[%emt 0:00:20]} Nd5 {[%emt 0:05:22]} 15. e4 {[%emt 0:07:07]} Nb6 {[%emt 0:00:33]} 16. Na5 {[%emt 0:10:28]} Bd7 {[%emt 0:00:49]} 17. Nc6 {[%emt 0:04:40]} Bxc6 {[%emt 0:00:51]} 18. Qxc6 {[%emt 0:00:09]} Qe8 {[%emt 0:10:47]} 19. Qc3 {[%emt 0:01:35]} e5 {[%emt 0:14:40]} 20. Be3 {[%emt 0:05:11]} Na4 {[%emt 0:02:42]} 21. Qc4 {[%emt 0:05:47]} Qb5 {[%emt 0:01:12]} 22. Qc2 {[%emt 0:11:41]} Qb3 {[%emt 0:01:52]} 23. Qe2 {[%emt 0:04:59]} exd4 {[%emt 0:01:38]} 24. Bxd4 {[%emt 0:00:42]} c5 {[%emt 0:00:16]} 25. Be3 {[%emt 0:00:47]} Be5 {[%emt 0:04:58]} 26. Rae1 {[%emt 0:00:46]} c4 {[%emt 0:06:04]} 27. Qg4 {[%emt 0:01:12]} Kh8 {[%emt 0:01:11]} 28. Bh3 {[%emt 0:06:02]} Rb5 {[%emt 0:01:36]} 29. f4 {[%emt 0:02:33]} Bc3 {[%emt 0:04:12]} 30. Re2 {[%emt 0:00:08]} Nc5 {[%emt 0:01:16]} 31. e5 {[%emt 0:05:20]} Nd3 {[%emt 0:01:48]} 32. Qh4 {[%emt 0:00:33]} Kh7 {[%emt 0:07:39]} 33. Qe7 {[%emt 0:02:36]} Rbb8 {[%emt 0:00:21]} 34. Bf5+ {[%emt 0:01:47]} Kh8 {[%emt 0:01:09]} 35. Be4 {[%emt 0:02:28]} Qb5 {[%emt 0:00:33]} 36. Qh4 {[%emt 0:01:46]} f6 {[%emt 0:02:25]} 37. Qh5 {[%emt 0:01:38]} Qe8 {[%emt 0:00:38]} 38. Bg6 {[%emt 0:00:06]} Qe7 {[%emt 0:00:28]} 39. e6 {[%emt 0:06:36]} f5 {[%emt 0:01:31]} 40. Bxf5 {[%emt 0:00:00]} Rb5 {[%emt 0:00:00]} 41. g4 {[%emt 0:01:25]} Qxa3 {[%emt 0:01:31]} 42. Qg6 {[%emt 0:04:32]} Rbxf5 {[%emt 0:01:15]} 43. gxf5 {[%emt 0:00:07]} Bf6 {[%emt 0:01:43]} 44. Qg2 {[%emt 0:01:07]} c3 {[%emt 0:05:25]} 45. Ra2 {[%emt 0:07:43]} Qb3 {[%emt 0:01:21]} 46. Rxa7 {[%emt 0:00:12]} c2 {[%emt 0:02:09]} 47. e7 {[%emt 0:00:15]} Rg8 {[%emt 0:00:41]} 48. Qe4 {[%emt 0:08:34]} Qb5 {[%emt 0:05:33]} 49. Ra8 {[%emt 0:00:20]} Bxe7 {[%emt 0:00:22]} 50. Rxg8+ {[%emt 0:00:08]} Kxg8 {[%emt 0:00:03]} 51. Qxe7 {[%emt 0:00:11]} Qxf5 {[%emt 0:00:03]} 52. Qh4 {[%emt 0:02:19]} c1=Q {[%emt 0:01:30]} 53. Bxc1 {[%emt 0:00:14]} Qc5+ {[%emt 0:00:15]} 54. Kg2 {[%emt 0:01:13]} Qc2+ {[%emt 0:05:19]} 55. Kh1 {[%emt 0:02:18]} Qc6+ {[%emt 0:00:15]} 56. Kg1 {[%emt 0:00:06]} Qc5+ {[%emt 0:00:27]} 57. Kg2 {[%emt 0:00:59]} Qc2+ {[%emt 0:00:05]} 58. Kh1 {[%emt 0:03:51]} Qc6+ {[%emt 0:00:19]} 59. Kg1 {[%emt 0:00:38]} 1/2-1/2

[Event "Cracovia Festival-A 2023"]
[Site "Krakow"]
[Date "2023.12.30"]
[Round "4.25"]
[White "Hryharovich, Aliaksei"]
[Black "Kucza, Karol"]
[Result "0-1"]
[ECO "D43"]
[WhiteElo "2195"]
[BlackElo "2343"]
[Annotator "RC"]
[PlyCount "119"]
[EventDate "2023.12.24"]
[EventType "swiss"]
[EventCountry "POL"]
[SourceTitle "playchess.com"]
[Source "ChessBase"]
[SourceQuality "1"]
[TimeControl "40/5400+30:1800+30"]

1. d4 {[%emt 0:00:02]} d5 {[%emt 0:00:08]} 2. c4 {[%emt 0:00:14]} e6 {[%emt 0:01:52]} 3. Nf3 {[%emt 0:01:34]} Nf6 {[%emt 0:00:52]} 4. Nc3 {[%emt 0:00:12]} c6 {[%emt 0:01:21]} 5. g3 {[%emt 0:00:38]} Nbd7 {[%emt 0:01:04]} 6. Bg2 {[%emt 0:00:31]} dxc4 {[%emt 0:03:20]} 7. O-O {[%emt 0:00:18]} b5 {[%emt 0:00:03]} 8. e4 {[%emt 0:02:40]} b4 {[%emt 0:00:04]} 9. e5 {[%emt 0:00:31]} Nd5 {[%emt 0:00:04]} 10. Ne4 {[%emt 0:01:01]} N7b6 {[%emt 0:00:02]} 11. Re1 {[%emt 0:05:44]} a5 {[%emt 0:05:23]} 12. Qc2 {[%emt 0:25:45]} Qc7 {[%emt 0:04:17]} 13. Nfd2 {[%emt 0:10:40]} Ba6 {[%emt 0:01:59]} 14. Nc5 {[%emt 0:01:11]} Bxc5 {[%emt 0:08:01]} 15. dxc5 {[%emt 0:00:14]} Nd7 {[%emt 0:00:06]} 16. Nxc4 {[%emt 0:03:56]} Bxc4 {[%emt 0:00:57]} 17. Qxc4 {[%emt 0:00:15]} O-O {[%emt 0:00:30]} 18. Qd4 {[%emt 0:11:57]} Rfb8 {[%emt 0:16:15]} 19. Bd2 {[%emt 0:05:26]} Rb5 {[%emt 0:01:05]} 20. Rac1 {[%emt 0:02:09]} Qa7 {[%emt 0:01:27]} 21. Be3 {[%emt 0:10:55]} Rd8 {[%emt 0:01:07]} 22. Bxd5 {[%emt 0:02:32]} exd5 {[%emt 0:02:25]} 23. Bg5 {[%emt 0:04:44]} Re8 {[%emt 0:00:19]} 24. Qg4 {[%emt 0:00:32]} Nf8 {[%emt 0:01:52]} 25. h4 {[%emt 0:06:49]} Rxc5 {[%emt 0:11:42]} 26. h5 {[%emt 0:01:41]} Ne6 {[%emt 0:01:43]} 27. h6 {[%emt 0:01:07]} Rxc1 {[%emt 0:09:00]} 28. Rxc1 {[%emt 0:00:26]} c5 {[%emt 0:00:49]} 29. hxg7 {[%emt 0:00:26]} c4 {[%emt 0:00:41]} 30. Bf6 {[%emt 0:00:36]} Rc8 {[%emt 0:05:42]} 31. Kg2 {[%emt 0:00:38]} Qd4 {[%emt 0:00:05]} 32. Qf5 {[%emt 0:00:31]} Qe4+ {[%emt 0:00:32]} 33. Qxe4 {[%emt 0:00:07]} dxe4 {[%emt 0:00:04]} 34. Kf1 {[%emt 0:00:51]} Nxg7 {[%emt 0:12:39]} 35. Ke2 {[%emt 0:00:03]} Nf5 {[%emt 0:00:06]} 36. g4 {[%emt 0:00:43]} Nh6 {[%emt 0:01:11]} 37. f3 {[%emt 0:00:36]} exf3+ {[%emt 0:00:13]} 38. Kxf3 {[%emt 0:00:04]} c3 {[%emt 0:00:26]} 39. bxc3 {[%emt 0:01:03]} Rxc3+ {[%emt 0:00:07]} 40. Rxc3 {[%emt 0:00:00]} bxc3 {[%emt 0:00:00]} 41. e6 {[%emt 0:05:37]} fxe6 {[%emt 0:00:39]} 42. Bxc3 {[%emt 0:03:27]} a4 {[%emt 0:00:06]} 43. g5 {[%emt 0:17:07]} Nf5 {[%emt 0:02:56]} 44. Kf4 {[%emt 0:02:02]} Kf7 {[%emt 0:00:10]} 45. Ke5 {[%emt 0:00:21]} Nh4 {[%emt 0:03:20]} 46. Kf4 {[%emt 0:04:04]} Kg6 {[%emt 0:01:41]} 47. Bd2 {[%emt 0:00:09]} Kh5 {[%emt 0:01:02]} 48. Bc1 {[%emt 0:00:44]} Ng6+ {[%emt 0:00:12]} 49. Kg3 {[%emt 0:00:47]} Ne5 {[%emt 0:00:08]} 50. Be3 {[%emt 0:00:54]} Nf7 {[%emt 0:00:10]} 51. Kf4 {[%emt 0:00:03]} Nxg5 {[%emt 0:00:15]} 52. Ke5 {[%emt 0:00:21]} Kg6 {[%emt 0:00:46]} 53. Kd4 {[%emt 0:00:18]} Kf5 {[%emt 0:03:18]} 54. Kc4 {[%emt 0:00:06]} h5 {[%emt 0:00:31]} 55. Bf2 {[%emt 0:00:34]} Ne4 {[%emt 0:00:43]} 56. Bg1 {[%emt 0:00:35]} h4 {[%emt 0:01:08]} 57. Kb4 {[%emt 0:00:03]} Nd2 {[%emt 0:01:40]} 58. Kxa4 {[%emt 0:00:58]} Nf3 {[%emt 0:00:05]} 59. Bf2 {[%emt 0:01:09]} h3 {[%emt 0:00:14]} 60. Bg3 {[%emt 0:00:05]} 0-1

[Event "Cracovia Festival-A 2023"]
[Site "Krakow"]
[Date "2023.12.30"]
[Round "4.26"]
[White "Dubnevych, Maksym"]
[Black "Keinanen, Anastasia"]
[Result "1/2-1/2"]
[ECO "A06"]
[WhiteElo "2340"]
[BlackElo "2227"]
[Annotator "RC"]
[PlyCount "132"]
[EventDate "2023.12.24"]
[EventType "swiss"]
[EventCountry "POL"]
[SourceTitle "playchess.com"]
[Source "ChessBase"]
[SourceQuality "1"]
[TimeControl "40/5400+30:1800+30"]

1. Nf3 {[%emt 0:00:03]} d5 {[%emt 0:00:23]} 2. e3 {[%emt 0:00:09]} Nf6 {[%emt 0:02:14]} 3. b3 {[%emt 0:00:08]} g6 {[%emt 0:02:14]} 4. Bb2 {[%emt 0:00:03]} Bg7 {[%emt 0:00:04]} 5. Be2 {[%emt 0:00:57]} O-O {[%emt 0:00:09]} 6. O-O {[%emt 0:00:23]} b6 {[%emt 0:01:26]} 7. d4 {[%emt 0:00:21]} Bb7 {[%emt 0:00:18]} 8. Nbd2 {[%emt 0:00:34]} Ne4 {[%emt 0:04:43]} 9. c4 {[%emt 0:02:07]} e6 {[%emt 0:03:27]} 10. Qc2 {[%emt 0:01:50]} Nd7 {[%emt 0:06:29]} 11. b4 {[%emt 0:29:42]} f5 {[%emt 0:26:14]} 12. c5 {[%emt 0:01:06]} c6 {[%emt 0:00:15]} 13. a4 {[%emt 0:05:08]} bxc5 {[%emt 0:15:25]} 14. bxc5 {[%emt 0:00:28]} Qc7 {[%emt 0:00:27]} 15. Nxe4 {[%emt 0:02:12]} fxe4 {[%emt 0:00:16]} 16. Ng5 {[%emt 0:00:01]} Rae8 {[%emt 0:06:42]} 17. f4 {[%emt 0:04:21]} exf3 {[%emt 0:02:27]} 18. Nxf3 {[%emt 0:00:32]} e5 {[%emt 0:03:03]} 19. Bc3 {[%emt 0:14:17]} exd4 {[%emt 0:04:36]} 20. exd4 {[%emt 0:08:12]} Nxc5 {[%emt 0:12:22]} 21. dxc5 {[%emt 0:02:45]} Bxc3 {[%emt 0:00:05]} 22. Qxc3 {[%emt 0:00:05]} Rxe2 {[%emt 0:00:06]} 23. Rae1 {[%emt 0:03:45]} Ba6 {[%emt 0:01:08]} 24. Nd4 {[%emt 0:08:10]} Rxe1 {[%emt 0:01:53]} 25. Rxe1 {[%emt 0:00:06]} Qf4 {[%emt 0:02:10]} 26. Nf3 {[%emt 0:00:22]} Qxa4 {[%emt 0:02:34]} 27. Nd4 {[%emt 0:03:43]} Qc4 {[%emt 0:02:07]} 28. Qxc4 {[%emt 0:00:01]} dxc4 {[%emt 0:00:27]} 29. Nxc6 {[%emt 0:01:33]} c3 {[%emt 0:00:33]} 30. Ne7+ {[%emt 0:00:43]} Kg7 {[%emt 0:00:30]} 31. Nd5 {[%emt 0:00:02]} c2 {[%emt 0:00:36]} 32. Nb4 {[%emt 0:00:01]} Bc4 {[%emt 0:00:33]} 33. Nxc2 {[%emt 0:00:11]} Rc8 {[%emt 0:00:17]} 34. Na3 {[%emt 0:00:31]} Bd3 {[%emt 0:00:24]} 35. Re3 {[%emt 0:00:52]} Bf5 {[%emt 0:00:29]} 36. Re7+ {[%emt 0:00:01]} Kf6 {[%emt 0:00:28]} 37. Rxh7 {[%emt 0:00:02]} Rxc5 {[%emt 0:00:08]} 38. Rxa7 {[%emt 0:00:06]} Bd3 {[%emt 0:00:41]} 39. Kf2 {[%emt 0:00:18]} Re5 {[%emt 0:00:52]} 40. Rd7 {[%emt 0:00:00]} Rf5+ {[%emt 0:00:00]} 41. Ke3 {[%emt 0:01:09]} Bf1 {[%emt 0:03:18]} 42. Rd6+ {[%emt 0:04:35]} Kg5 {[%emt 0:03:13]} 43. Rd2 {[%emt 0:00:44]} Re5+ {[%emt 0:03:10]} 44. Kf2 {[%emt 0:00:17]} Rf5+ {[%emt 0:00:04]} 45. Kg3 {[%emt 0:00:04]} Kh6 {[%emt 0:02:17]} 46. Nc2 {[%emt 0:00:40]} Rg5+ {[%emt 0:00:51]} 47. Kf3 {[%emt 0:00:02]} Rf5+ {[%emt 0:03:58]} 48. Ke4 {[%emt 0:00:08]} Ba6 {[%emt 0:00:49]} 49. Rd7 {[%emt 0:01:30]} Rb5 {[%emt 0:04:23]} 50. Ne3 {[%emt 0:01:03]} Bb7+ {[%emt 0:01:36]} 51. Kf4 {[%emt 0:00:11]} Rb4+ {[%emt 0:00:25]} 52. Kg3 {[%emt 0:00:18]} Rb3 {[%emt 0:01:03]} 53. Re7 {[%emt 0:00:17]} Bc8 {[%emt 0:00:25]} 54. Kf4 {[%emt 0:01:43]} Rb4+ {[%emt 0:02:04]} 55. Kf3 {[%emt 0:01:16]} Bb7+ {[%emt 0:00:49]} 56. Kg3 {[%emt 0:00:03]} Rb3 {[%emt 0:02:45]} 57. h3 {[%emt 0:02:04]} Bc8 {[%emt 0:00:38]} 58. Kh4 {[%emt 0:00:21]} g5+ {[%emt 0:01:36]} 59. Kg3 {[%emt 0:00:01]} Kg6 {[%emt 0:00:15]} 60. Kh2 {[%emt 0:01:20]} Bb7 {[%emt 0:01:50]} 61. Re6+ {[%emt 0:04:54]} Kf7 {[%emt 0:00:32]} 62. Re5 {[%emt 0:00:02]} Kg6 {[%emt 0:01:08]} 63. Nc4 {[%emt 0:01:10]} Rc3 {[%emt 0:01:51]} 64. Rc5 {[%emt 0:00:38]} Kh5 {[%emt 0:01:24]} 65. Rb5 {[%emt 0:05:40]} Bxg2 {[%emt 0:01:11]} 66. Kxg2 {[%emt 0:00:03]} Rxc4 {[%emt 0:00:04]} 1/2-1/2

[Event "Cracovia Festival-A 2023"]
[Site "Krakow"]
[Date "2023.12.30"]
[Round "4.27"]
[White "Pyrig, Roman"]
[Black "Skytte, Rasmus"]
[Result "1/2-1/2"]
[ECO "B06"]
[WhiteElo "2154"]
[BlackElo "2337"]
[Annotator "ChessBase"]
[PlyCount "78"]
[EventDate "2023.12.24"]
[EventType "swiss"]
[EventCountry "POL"]
[SourceTitle "playchess.com"]
[Source "ChessBase"]
[SourceQuality "1"]
[TimeControl "40/5400+30:1800+30"]

1. e4 {[%emt 0:03:08]} g6 {[%emt 0:00:14]} 2. d4 {[%emt 0:00:29]} Bg7 {[%emt 0:00:04]} 3. Nc3 {[%emt 0:00:04]} d6 {[%emt 0:00:20]} 4. g3 {[%emt 0:00:06]} Nc6 {[%emt 0:01:44]} 5. Be3 {[%emt 0:01:15]} Nf6 {[%emt 0:01:32]} 6. h3 {[%emt 0:00:16]} e5 {[%emt 0:01:09]} 7. Nge2 {[%emt 0:00:12]} d5 {[%emt 0:21:46]} 8. Bg2 {[%emt 0:01:38]} Nxe4 {[%emt 0:02:33]} 9. dxe5 {[%emt 0:10:53]} Nxc3 {[%emt 0:06:04]} 10. Nxc3 {[%emt 0:00:03]} Bxe5 {[%emt 0:03:01]} 11. Nxd5 {[%emt 0:01:51]} O-O {[%emt 0:03:32]} 12. O-O {[%emt 0:03:30]} Be6 {[%emt 0:01:20]} 13. c3 {[%emt 0:00:35]} Bg7 {[%emt 0:02:17]} 14. Bf4 {[%emt 0:01:17]} Be5 {[%emt 0:03:54]} 15. Bxe5 {[%emt 0:03:55]} Nxe5 {[%emt 0:00:10]} 16. Qd4 {[%emt 0:01:34]} Bxd5 {[%emt 0:07:01]} 17. Bxd5 {[%emt 0:02:06]} Nc6 {[%emt 0:12:13]} 18. Bxc6 {[%emt 0:00:30]} Qxd4 {[%emt 0:00:57]} 19. cxd4 {[%emt 0:00:06]} bxc6 {[%emt 0:00:05]} 20. Rfc1 {[%emt 0:01:17]} Rfb8 {[%emt 0:00:49]} 21. Rxc6 {[%emt 0:01:09]} Rxb2 {[%emt 0:02:50]} 22. Rxc7 {[%emt 0:00:03]} a5 {[%emt 0:01:22]} 23. a4 {[%emt 0:02:02]} Rd2 {[%emt 0:01:59]} 24. Rd7 {[%emt 0:00:35]} Ra6 {[%emt 0:03:41]} 25. Rd5 {[%emt 0:01:45]} Re6 {[%emt 0:03:23]} 26. Kg2 {[%emt 0:02:48]} Ree2 {[%emt 0:03:27]} 27. Rf1 {[%emt 0:00:03]} Rd3 {[%emt 0:02:16]} 28. h4 {[%emt 0:08:37]} h5 {[%emt 0:02:23]} 29. Ra1 {[%emt 0:04:20]} Rdd2 {[%emt 0:00:23]} 30. Rf1 {[%emt 0:00:17]} Rd3 {[%emt 0:00:27]} 31. Rd7 {[%emt 0:20:25]} Red2 {[%emt 0:04:44]} 32. Re1 {[%emt 0:00:37]} Rxd4 {[%emt 0:00:19]} 33. Ra7 {[%emt 0:00:02]} Rd5 {[%emt 0:00:40]} 34. Re3 {[%emt 0:00:06]} Rf5 {[%emt 0:00:51]} 35. Rf3 {[%emt 0:00:02]} Rdd5 {[%emt 0:00:17]} 36. Rxf5 {[%emt 0:01:19]} Rxf5 {[%emt 0:00:20]} 37. Kf1 {[%emt 0:00:02]} Re5 {[%emt 0:00:57]} 38. f3 {[%emt 0:00:37]} Kg7 {[%emt 0:03:12]} 39. Kf2 {[%emt 0:00:02]} Rc5 {[%emt 0:00:46]} 1/2-1/2

[Event "Cracovia Festival-A 2023"]
[Site "Krakow"]
[Date "2023.12.30"]
[Round "4.28"]
[White "Ongut, Tamas Gunes"]
[Black "Flak, Pawel"]
[Result "1-0"]
[ECO "B03"]
[WhiteElo "2313"]
[BlackElo "2145"]
[Annotator "ChessBase"]
[PlyCount "45"]
[EventDate "2023.12.24"]
[EventType "swiss"]
[EventCountry "POL"]
[SourceTitle "playchess.com"]
[Source "ChessBase"]
[SourceQuality "1"]
[TimeControl "40/5400+30:1800+30"]

1. e4 {[%emt 0:02:31]} Nf6 {[%emt 0:00:02]} 2. e5 {[%emt 0:00:20]} Nd5 {[%emt 0:00:02]} 3. d4 {[%emt 0:00:10]} d6 {[%emt 0:00:01]} 4. c4 {[%emt 0:00:41]} Nb6 {[%emt 0:00:02]} 5. f4 {[%emt 0:00:09]} Bf5 {[%emt 0:00:01]} 6. Nc3 {[%emt 0:00:11]} dxe5 {[%emt 0:00:02]} 7. fxe5 {[%emt 0:00:11]} e6 {[%emt 0:00:02]} 8. Be3 {[%emt 0:00:13]} Be7 {[%emt 0:00:02]} 9. Nf3 {[%emt 0:00:10]} f6 {[%emt 0:00:19]} 10. Bd3 {[%emt 0:00:24]} Nc6 {[%emt 0:10:05]} 11. Bxf5 {[%emt 0:01:40]} exf5 {[%emt 0:01:03]} 12. Bf2 {[%emt 0:05:45]} Qd7 {[%emt 0:16:15]} 13. O-O {[%emt 0:00:20]} O-O-O {[%emt 0:02:09]} 14. e6 {[%emt 0:16:21]} Qxe6 {[%emt 0:09:18]} 15. d5 {[%emt 0:00:06]} Qd7 {[%emt 0:03:19]} 16. dxc6 {[%emt 0:00:31]} Qxc6 {[%emt 0:00:02]} 17. Qc2 {[%emt 0:08:26]} Nxc4 {[%emt 0:04:00]} 18. Nd4 {[%emt 0:01:03]} Qc5 {[%emt 0:23:29]} 19. Ne6 {[%emt 0:02:48]} Ne3 {[%emt 0:10:05]} 20. Qe2 {[%emt 0:00:36]} Qc4 {[%emt 0:00:09]} 21. Qxe3 {[%emt 0:00:41]} Rd3 {[%emt 0:00:03]} 22. Qxa7 {[%emt 0:01:19]} Bd6 {[%emt 0:05:33]} 23. Nc5 {[%emt 0:03:02]} 1-0